bitfinex-derivatives/quotes_ETHF0:USTF0_20260221
["timestamp","ask_amount","ask_price","bid_price","bid_amount"]
[1771659693834,6.26767706,1963.2,1962.7,0.62169036]
[1771659694128,0.00651825,1963.3,1962.7,0.62169036]
[1771659694332,6.2682861,1963.2,1962.7,0.62169036]
[1771659694533,0.00651825,1963.3,1962.7,0.62169036]
[1771659694732,6.26828978,1963.2,1962.7,0.62169036]
[1771659695034,0.00651825,1963.3,1962.7,0.62169036]
[1771659695232,6.26890689,1963.2,1962.7,0.62169036]
[1771659695429,0.00651825,1963.3,1962.7,0.62169036]
[1771659695637,6.268957,1963.2,1962.7,0.62169036]
[1771659695839,0.00651825,1963.3,1962.7,0.62169036]
[1771659696038,6.26895769,1963.2,1962.7,0.62169036]
[1771659696230,0.00651825,1963.3,1962.7,0.62169036]
[1771659696435,6.26910791,1963.2,1962.7,0.62169036]
[1771659696635,0.00651825,1963.3,1962.7,0.62169036]
[1771659696835,6.26910791,1963.2,1962.7,0.62169036]
[1771659697034,0.00651825,1963.3,1962.7,0.62169036]
[1771659697236,6.26926053,1963.2,1962.7,0.62169036]
[1771659697437,0.00651825,1963.3,1962.7,0.62169036]
[1771659697638,6.26927864,1963.2,1962.7,0.62169036]
[1771659697845,0.00651825,1963.3,1962.7,0.62169036]
[1771659698043,6.26927896,1963.2,1962.7,0.62169036]
[1771659698342,0.00651825,1963.3,1962.7,0.62169036]
[1771659698542,6.2694693,1963.2,1962.7,0.62169036]
[1771659698841,0.00651825,1963.3,1962.7,0.62169036]
[1771659699042,6.2694693,1963.2,1962.7,0.62169036]
[1771659699245,0.00651825,1963.3,1962.7,0.62169036]
[1771659699444,6.26967138,1963.2,1962.7,0.62169036]
[1771659699645,0.00651825,1963.3,1962.7,0.62169036]
[1771659699944,6.26967138,1963.2,1962.7,0.62169036]
[1771659700145,0.00651825,1963.3,1962.7,0.62169036]
[1771659700345,6.26992217,1963.2,1962.7,0.62169036]
[1771659700540,0.00651825,1963.3,1962.7,0.62169036]
[1771659700740,6.26992217,1963.2,1962.7,0.62169036]
[1771659700944,0.00651825,1963.3,1962.7,0.62169036]
[1771659701242,6.26992217,1963.2,1962.7,0.62169036]
[1771659701444,0.00651825,1963.3,1962.7,0.62169036]
[1771659701743,6.27027077,1963.2,1962.7,0.62169036]
[1771659701945,0.00651825,1963.3,1962.7,0.62169036]
[1771659702144,6.27027078,1963.2,1962.7,0.62169036]
[1771659702346,0.00651825,1963.3,1962.7,0.62169036]
[1771659702646,6.27093436,1963.2,1962.7,0.62169036]
[1771659702945,0.00651825,1963.3,1962.7,0.62169036]
[1771659703245,6.27093327,1963.2,1962.7,0.62169036]
[1771659703442,0.00651825,1963.3,1962.7,0.62169036]
[1771659703643,6.27094352,1963.2,1962.7,0.62169036]
[1771659703845,0.00651825,1963.3,1962.7,0.62169036]
[1771659704143,6.27094352,1963.2,1962.7,0.62169036]
[1771659704439,0.00651825,1963.3,1962.7,0.62169036]
[1771659704643,6.27095578,1963.2,1962.7,0.62169036]
[1771659704944,0.00651825,1963.3,1962.7,0.62169036]
[1771659705143,6.27095579,1963.2,1962.7,0.62169036]
[1771659705349,0.00651825,1963.3,1962.7,0.62169036]
[1771659705549,6.27096884,1963.2,1962.7,0.62169036]
[1771659705849,0.00651825,1963.3,1962.7,0.62169036]
[1771659706050,6.27096919,1963.2,1962.7,0.62169036]
[1771659706253,0.00651825,1963.3,1962.7,0.62169036]
[1771659706450,6.27098676,1963.2,1962.7,0.62169036]
[1771659706753,0.00651825,1963.3,1962.7,0.62169036]
[1771659706953,6.26598977,1963.2,1962.7,0.00483436]
[1771659707144,0.00651825,1963.3,1962.7,0.00483436]
[1771659707349,6.26600347,1963.2,1962.7,0.00483436]
[1771659707650,0.00651825,1963.3,1962.7,0.00483436]
[1771659707851,6.26600457,1963.2,1962.7,0.00483436]
[1771659708052,0.00651825,1963.3,1962.7,0.00483436]
[1771659708257,6.2659767,1963.2,1962.7,0.00483436]
[1771659708455,0.00651825,1963.3,1962.7,0.00483436]
[1771659708754,6.26597413,1963.2,1962.7,0.00483436]
[1771659708962,0.00651825,1963.3,1962.7,0.00483436]
[1771659709154,6.26597413,1963.2,1962.7,0.00483436]
[1771659709353,0.00651825,1963.3,1962.7,0.00483436]
[1771659709553,6.26594256,1963.2,1962.7,0.62793659]
[1771659709754,0.00651825,1963.3,1962.7,0.62793659]
[1771659709945,6.26594256,1963.2,1962.7,0.00483436]
[1771659710144,0.00651825,1963.3,1962.7,0.00483436]
[1771659710346,6.26589162,1963.2,1962.7,0.00483436]
[1771659710555,0.00651825,1963.3,1962.7,0.00483436]
[1771659710754,6.26589162,1963.2,1962.7,0.62793659]
[1771659710956,0.00651825,1963.3,1962.7,0.62793659]
[1771659711157,6.26589162,1963.2,1962.7,0.62793659]
[1771659711356,0.00651825,1963.3,1962.7,0.62793659]
[1771659711557,6.26585193,1963.2,1962.7,0.62793659]
[1771659711756,0.00651825,1963.3,1962.7,0.62793659]
[1771659712057,6.26585193,1963.2,1962.7,0.62793659]
[1771659712357,0.00651825,1963.3,1962.7,0.62793659]
[1771659712556,6.26582175,1963.2,1962.7,0.62793659]
[1771659712756,0.00651825,1963.3,1962.7,0.62793659]
[1771659712955,6.26582175,1963.2,1962.7,0.62793659]
[1771659713257,0.00651825,1963.3,1962.7,0.62793659]
[1771659713456,6.26579743,1963.2,1962.7,0.62793659]
[1771659713646,0.00651825,1963.3,1962.7,0.62793659]
[1771659713851,6.26579743,1963.2,1962.7,0.62793659]
[1771659714057,0.00651825,1963.3,1962.7,0.62793659]
[1771659714257,6.26578003,1963.2,1962.7,0.62793659]
[1771659714556,0.00651825,1963.3,1962.7,0.00483436]
[1771659714753,6.26577861,1963.2,1962.7,0.00483436]
[1771659715055,0.00651825,1963.3,1962.7,0.00483436]
[1771659715253,6.26575814,1963.2,1962.7,0.00483436]
[1771659715459,0.46786536,1963.1,1962.7,0.00483436]
[1771659715656,0.00651825,1963.3,1962.7,0.00483436]
[1771659715859,6.2660071,1963.2,1962.7,0.00483436]
[1771659716154,0.46788392,1963.1,1962.7,0.00483436]
[1771659716353,0.00651825,1963.3,1962.7,0.00483436]
[1771659716553,6.26558079,1963.2,1962.7,0.00483436]
[1771659716753,0.46785297,1963.1,1962.7,0.00483436]
[1771659716955,0.00651825,1963.3,1962.7,0.00483436]
[1771659717156,6.26558079,1963.2,1962.7,0.00483436]
[1771659717356,0.46785297,1963.1,1962.7,0.62873759]
[1771659717557,0.00651825,1963.3,1962.7,0.62873759]
[1771659717859,6.26531072,1963.2,1962.7,0.62873759]
[1771659718059,0.00651825,1963.3,1962.7,0.62873759]
[1771659718261,6.26521767,1963.2,1962.7,0.62873759]
[1771659718456,0.00651825,1963.3,1962.7,0.62873759]
[1771659718758,6.26521198,1963.2,1962.7,0.62873759]
[1771659718959,0.00651825,1963.3,1962.7,0.62873759]
[1771659719161,6.26521213,1963.2,1962.7,0.62873759]
[1771659719460,0.00651825,1963.3,1962.7,0.62873759]
[1771659719661,6.26514555,1963.2,1962.7,0.62873759]
[1771659719861,0.00651825,1963.3,1962.7,0.62873759]
[1771659720061,6.26514555,1963.2,1962.7,0.62873759]
[1771659720261,0.00651825,1963.3,1962.7,0.62873759]
[1771659720453,6.26512791,1963.2,1962.7,0.62873759]
[1771659720658,0.00651825,1963.3,1962.7,0.62873759]
[1771659720858,6.26512791,1963.2,1962.7,0.62873759]
[1771659721075,0.00651825,1963.3,1962.7,0.62873759]
[1771659721262,6.26511154,1963.2,1962.7,0.62873759]
[1771659721461,0.00651825,1963.3,1962.7,0.62873759]
[1771659721662,6.26507332,1963.2,1962.7,0.62873759]
[1771659721864,0.00651825,1963.3,1962.7,0.62873759]
[1771659722064,6.26507333,1963.2,1962.7,0.62873759]
[1771659722266,0.00651825,1963.3,1962.7,0.62873759]
[1771659722563,6.26502725,1963.2,1962.7,0.62873759]
[1771659722763,0.00651825,1963.3,1962.7,0.62873759]
[1771659722963,6.26502725,1963.2,1962.7,0.62873759]
[1771659723165,0.00651825,1963.3,1962.7,0.62873759]
[1771659723365,6.26500297,1963.2,1962.7,0.62873759]
[1771659723568,0.00651825,1963.3,1962.7,0.62873759]
[1771659723761,6.26500297,1963.2,1962.7,0.62873759]
[1771659723958,0.00651825,1963.3,1962.7,0.62873759]
[1771659724167,6.26500297,1963.2,1962.7,0.62873759]
[1771659724366,0.00651825,1963.3,1962.7,0.62873759]
[1771659724562,6.26498865,1963.2,1962.7,0.62873759]
[1771659724764,0.00651825,1963.3,1962.7,0.62873759]
[1771659725062,6.26498865,1963.2,1962.7,0.62873759]
[1771659725259,0.00651825,1963.3,1962.7,0.62873759]
[1771659725463,6.26498414,1963.2,1962.7,0.62873759]
[1771659725668,0.00651825,1963.3,1962.7,0.62873759]
[1771659725869,6.26498414,1963.2,1962.7,0.62873759]
[1771659726070,0.00651825,1963.3,1962.7,0.62873759]
[1771659726265,6.26499118,1963.2,1962.7,0.62873759]
[1771659726571,0.00651825,1963.3,1962.7,0.62873759]
[1771659726772,6.26498798,1963.2,1962.7,0.62873759]
[1771659726977,0.00651825,1963.3,1962.7,0.62873759]
[1771659727268,6.26498688,1963.2,1962.7,0.62873759]
[1771659727568,0.00651825,1963.3,1962.7,0.62873759]
[1771659727767,6.2650019,1963.2,1962.7,0.62873759]
[1771659727967,0.00651825,1963.3,1962.7,0.62873759]
[1771659728167,6.2650019,1963.2,1962.7,0.62873759]
[1771659728369,0.00651825,1963.3,1962.7,0.62873759]
[1771659728570,6.26500846,1963.2,1962.7,0.62873759]
[1771659728770,0.00651825,1963.3,1962.7,0.62873759]
[1771659728972,6.26500846,1963.2,1962.7,0.62873759]
[1771659729269,0.00651825,1963.3,1962.7,0.62873759]
[1771659729470,6.26502235,1963.2,1962.7,0.62873759]
[1771659729667,0.00651825,1963.3,1962.7,0.62873759]
[1771659729868,6.265022,1963.2,1962.7,0.62873759]
[1771659730063,0.00651825,1963.3,1962.7,0.62873759]
[1771659730268,6.26503298,1963.2,1962.7,0.62873759]
[1771659730569,0.00651825,1963.3,1962.7,0.62873759]
[1771659730770,6.26504356,1963.2,1962.7,0.62873759]
[1771659730971,0.00651825,1963.3,1962.7,0.62873759]
[1771659731171,6.26504356,1963.2,1962.7,0.62873759]
[1771659731472,0.00651825,1963.3,1962.7,0.62873759]
[1771659731670,6.26507333,1963.2,1962.7,0.62873759]
[1771659731869,0.00651825,1963.3,1962.7,0.62873759]
[1771659732071,6.26507366,1963.2,1962.7,0.62873759]
[1771659732269,0.00651825,1963.3,1962.7,0.62873759]
[1771659732469,6.26511098,1963.2,1962.7,0.62873759]
[1771659732670,0.00651825,1963.3,1962.7,0.62873759]
[1771659732869,6.26511098,1963.2,1962.7,0.62873759]
[1771659733070,0.00651825,1963.3,1962.7,0.62873759]
[1771659733274,6.26514348,1963.2,1962.7,0.62873759]
[1771659733471,0.00651825,1963.3,1962.7,0.62873759]
[1771659733769,6.26515966,1963.2,1962.7,0.62873759]
[1771659734067,0.00651825,1963.3,1962.7,0.62873759]
[1771659734271,6.26520153,1963.2,1962.7,0.62873759]
[1771659734472,0.00651825,1963.3,1962.7,0.62873759]
[1771659734672,6.26522005,1963.2,1962.7,0.62873759]
[1771659734871,0.00651825,1963.3,1962.7,0.62873759]
[1771659735072,6.26521937,1963.2,1962.7,0.62873759]
[1771659735266,0.00651825,1963.3,1962.7,0.62873759]
[1771659735474,6.26529176,1963.2,1962.7,0.62873759]
[1771659735674,0.00651825,1963.3,1962.7,0.62873759]
[1771659735873,6.26529176,1963.2,1962.7,0.62873759]
[1771659736075,0.00651825,1963.3,1962.7,0.62873759]
[1771659736375,6.26535805,1963.2,1962.7,0.62873759]
[1771659736577,0.00651825,1963.3,1962.7,0.62873759]
[1771659736777,6.26537744,1963.2,1962.7,0.62873759]
[1771659736977,0.00651825,1963.3,1962.7,0.62873759]
[1771659737179,6.26530254,1963.2,1962.7,0.62873759]
[1771659737378,0.00651825,1963.3,1962.7,0.62873759]
[1771659737572,6.26537484,1963.2,1962.7,0.62873759]
[1771659737774,0.00651825,1963.3,1962.7,0.62873759]
[1771659737974,6.26537484,1963.2,1962.7,0.62873759]
[1771659738173,0.00651825,1963.3,1962.7,0.62873759]
[1771659738379,6.26543118,1963.2,1962.7,0.62873759]
[1771659738676,0.00651825,1963.3,1962.7,0.62873759]
[1771659738878,6.26543118,1963.2,1962.7,0.62873759]
[1771659739079,0.00651825,1963.3,1962.7,0.62873759]
[1771659739280,6.26547958,1963.2,1962.7,0.62873759]
[1771659739579,0.00651825,1963.3,1962.7,0.62873759]
[1771659739778,6.26549641,1963.2,1962.7,0.62873759]
[1771659739978,0.00651825,1963.3,1962.7,0.62873759]
[1771659740178,6.26549641,1963.2,1962.7,0.62873759]
[1771659740480,0.46785649,1963.1,1962.7,0.62873759]
[1771659740678,0.00651825,1963.3,1962.7,0.62873759]
[1771659740874,6.26554897,1963.2,1962.7,0.00483436]
[1771659741074,6.26554897,1963.1,1962.7,0.00483436]
[1771659741376,0.00651825,1963.3,1962.6,0.62897876]
[1771659741675,6.2654722,1963.2,1962.6,0.62897876]
[1771659741874,6.2654722,1963.1,1962.6,0.62897876]
[1771659742074,0.00651825,1963.3,1962.6,0.62897876]
[1771659742378,6.26550755,1963.2,1962.6,0.6347867]
[1771659742579,6.26550755,1963.1,1962.6,0.6347867]
[1771659742779,0.00651825,1963.3,1962.6,0.6347867]
[1771659742979,6.26540138,1963.2,1962.6,0.6347867]
[1771659743278,6.26540138,1963.1,1962.6,0.6347867]
[1771659743581,0.00651825,1963.3,1962.6,0.6347867]
[1771659743778,6.26535788,1963.2,1962.6,0.6347867]
[1771659743980,6.26535788,1963.1,1962.6,0.6347867]
[1771659744282,0.00651825,1963.3,1962.6,0.6347867]
[1771659744486,6.26534083,1963.2,1962.6,0.6347867]
[1771659744779,6.26534083,1963.1,1962.6,0.6347867]
[1771659744977,0.00651825,1963.3,1962.6,0.6347867]
[1771659745182,6.26534083,1963.2,1962.6,0.6347867]
[1771659745378,6.26534083,1963.1,1962.6,0.6347867]
[1771659745580,0.00651825,1963.3,1962.6,0.6347867]
[1771659745780,6.26534952,1963.2,1962.6,0.6347867]
[1771659745981,6.26534952,1963.1,1962.6,0.6347867]
[1771659746181,0.00651825,1963.3,1962.6,0.6347867]
[1771659746382,6.26528738,1963.2,1962.6,0.6347867]
[1771659746583,0.46783733,1963.1,1962.6,0.6347867]
[1771659746784,0.00651825,1963.3,1962.6,0.6347867]
[1771659747085,6.26528738,1963.2,1962.6,0.6347867]
[1771659747383,0.46783733,1963.1,1962.6,0.6347867]
[1771659747588,0.00651825,1963.3,1962.6,0.6347867]
[1771659747882,6.2652294,1963.2,1962.6,0.6347867]
[1771659748082,0.46783299,1963.1,1962.6,0.6347867]
[1771659748282,0.00651825,1963.3,1962.6,0.6347867]
[1771659748485,6.26517526,1963.2,1962.6,0.6347867]
[1771659748684,0.46782895,1963.1,1962.6,0.6347867]
[1771659748884,0.00651825,1963.3,1962.6,0.6347867]
[1771659749084,6.26517526,1963.2,1962.6,0.6347867]
[1771659749286,0.46782895,1963.1,1962.6,0.6347867]
[1771659749486,0.00651825,1963.3,1962.6,0.6347867]
[1771659749685,6.26513024,1963.2,1962.6,0.6347867]
[1771659749879,0.4678256,1963.1,1962.6,0.6347867]
[1771659750083,0.00651825,1963.3,1962.6,0.6347867]
[1771659750383,6.2651284,1963.2,1962.6,0.6347867]
[1771659750684,0.46782376,1963.1,1962.6,0.6347867]
[1771659750882,0.00651825,1963.3,1962.6,0.6347867]
[1771659751082,6.26510599,1963.2,1962.6,0.6347867]
[1771659751286,0.46782378,1963.1,1962.6,0.6347867]
[1771659751486,0.00651825,1963.3,1962.6,0.6347867]
[1771659751687,6.26507563,1963.2,1962.6,0.6347867]
[1771659751888,0.46782143,1963.1,1962.6,0.6347867]
[1771659752087,0.00651825,1963.3,1962.6,0.6347867]
[1771659752288,6.26507379,1963.2,1962.6,0.6347867]
[1771659752489,0.46781959,1963.1,1962.6,0.6347867]
[1771659752684,0.00651825,1963.3,1962.6,0.6347867]
[1771659752984,6.26505244,1963.2,1962.6,0.6347867]
[1771659753184,0.46781957,1963.1,1962.6,0.6347867]
[1771659753385,0.00651825,1963.3,1962.6,0.6347867]
[1771659753584,6.26503614,1963.2,1962.6,0.6347867]
[1771659753885,0.46781829,1963.1,1962.6,0.6347867]
[1771659754085,0.00651825,1963.3,1962.6,0.6347867]
[1771659754285,6.26503533,1963.2,1962.6,0.6347867]
[1771659754488,0.46781748,1963.1,1962.6,0.6347867]
[1771659754785,0.00651825,1963.3,1962.6,0.6347867]
[1771659754987,6.26502594,1963.2,1962.6,0.6347867]
[1771659755187,0.46781752,1963.1,1962.6,0.6347867]
[1771659755386,0.00651825,1963.3,1962.6,0.6347867]
[1771659755586,6.2650221,1963.2,1962.6,0.6347867]
[1771659755786,0.46781718,1963.1,1962.6,0.6347867]
[1771659755986,0.00651825,1963.3,1962.6,0.6347867]
[1771659756187,6.2650221,1963.2,1962.6,0.6347867]
[1771659756387,0.46781718,1963.1,1962.6,0.6347867]
[1771659756592,0.00651825,1963.3,1962.6,0.6347867]
[1771659756792,6.26502569,1963.2,1962.6,0.6347867]
[1771659757094,0.46781747,1963.1,1962.6,0.6347867]
[1771659757290,0.00651825,1963.3,1962.6,0.6347867]
[1771659757489,6.26503691,1963.2,1962.6,0.6347867]
[1771659757690,0.4678184,1963.1,1962.6,0.6347867]
[1771659757889,0.00651825,1963.3,1962.6,0.6347867]
[1771659758090,0.4678427,1963.2,1962.6,0.6347867]
[1771659758290,6.26534727,1963.1,1962.6,0.6347867]
[1771659758493,4.27719553,1963.3,1962.6,0.6347867]
[1771659758792,0.46781269,1963.2,1962.6,0.6347867]
[1771659758993,6.26492843,1963.1,1962.6,0.6347867]
[1771659759193,4.27719553,1963.3,1962.6,0.6347867]
[1771659759390,0.46778927,1963.2,1962.6,0.6347867]
[1771659759591,6.26461644,1963.1,1962.6,0.6347867]
[1771659759790,4.27719553,1963.3,1962.6,0.6347867]
[1771659759990,0.46778925,1963.2,1962.6,0.6347867]
[1771659760189,4.27719553,1963.3,1962.6,0.6347867]
[1771659760190,6.26461642,1963.1,1962.6,0.6347867]
[1771659760393,4.27719553,1963.3,1962.6,0.6347867]
[1771659760590,0.46777137,1963.2,1962.6,0.6347867]
[1771659760790,6.26437701,1963.1,1962.6,0.6347867]
[1771659760990,4.27719553,1963.3,1962.6,0.6347867]
[1771659761191,0.46777137,1963.2,1962.6,0.6347867]
[1771659761391,6.26437701,1963.1,1962.6,0.6347867]
[1771659761691,0.00651825,1963.3,1962.6,0.6347867]
[1771659761892,6.26419078,1963.2,1962.6,0.6347867]
[1771659762093,6.26419078,1963.1,1962.6,0.6347867]
[1771659762294,1.66832237,1963.3,1962.6,0.6347867]
[1771659762493,6.26404565,1963.2,1962.6,0.6347867]
[1771659762794,6.26404565,1963.1,1962.6,0.6347867]
[1771659763094,5.93899965,1963.3,1962.6,0.6347867]
[1771659763294,6.26405392,1963.2,1962.6,0.6347867]
[1771659763494,6.26405392,1963.1,1962.6,0.6347867]
[1771659763695,5.93899965,1963.3,1962.6,0.6347867]
[1771659763896,6.26378258,1963.2,1962.6,0.6347867]
[1771659764095,6.26378258,1963.1,1962.6,0.6347867]
[1771659764297,5.93899965,1963.3,1962.6,0.6347867]
[1771659764592,6.26355476,1963.2,1962.6,0.6347867]
[1771659764795,6.26355476,1963.1,1962.6,0.6347867]
[1771659764994,5.93899965,1963.3,1962.6,0.6347867]
[1771659765197,6.26355444,1963.2,1962.6,0.6347867]
[1771659765398,6.26355444,1963.1,1962.6,0.6347867]
[1771659765695,5.93899965,1963.3,1962.6,0.6347867]
[1771659765896,6.26338197,1963.2,1962.6,0.6347867]
[1771659766097,6.26338197,1963.1,1962.6,0.6347867]
[1771659766397,5.93899965,1963.3,1962.6,0.6347867]
[1771659766596,6.26325689,1963.2,1962.6,0.6347867]
[1771659766797,6.26325689,1963.1,1962.6,0.6347867]
[1771659766996,5.93899965,1963.3,1962.6,0.6347867]
[1771659767198,6.26659418,1963.2,1962.6,0.6347867]
[1771659767399,6.26659418,1963.1,1962.6,0.6347867]
[1771659767594,5.93899965,1963.3,1962.6,0.6347867]
[1771659767795,6.26651079,1963.2,1962.6,0.6347867]
[1771659767994,6.26651079,1963.1,1962.6,0.6347867]
[1771659768193,0.46768113,1963.0,1962.6,0.6347867]
[1771659768397,5.93899965,1963.3,1962.6,0.6347867]
[1771659768595,6.26629312,1963.2,1962.6,0.6347867]
[1771659768798,6.26629312,1963.1,1962.6,0.6347867]
[1771659769097,0.46766495,1963.0,1962.6,0.6347867]
[1771659769397,5.93899965,1963.3,1962.6,0.6347867]
[1771659769598,6.26610528,1963.2,1962.6,0.6347867]
[1771659769799,6.26610528,1963.1,1962.6,0.6347867]
[1771659770001,0.46765092,1963.0,1962.6,0.6347867]
[1771659770204,5.93899965,1963.3,1962.6,0.6347867]
[1771659770398,6.26597864,1963.2,1962.6,0.6347867]
[1771659770600,6.26597864,1963.1,1962.6,0.6347867]
[1771659770800,0.46764146,1963.0,1962.6,0.6347867]
[1771659771000,5.93899965,1963.3,1962.6,0.00580794]
[1771659771199,6.26599101,1963.2,1962.6,0.00580794]
[1771659771402,6.26599101,1963.1,1962.6,0.00580794]
[1771659771605,6.26599101,1963.0,1962.6,0.00580794]
[1771659771802,1.66180412,1963.1,1962.6,0.00580794]
[1771659772002,6.26573305,1963.0,1962.6,0.00580794]
[1771659772204,1.66180412,1963.1,1962.5,0.64309895]
[1771659772404,6.26544007,1963.0,1962.5,0.64309895]
[1771659772698,1.66180412,1963.1,1962.5,0.64309895]
[1771659772902,6.26544007,1963.0,1962.5,0.64309895]
[1771659773103,1.66180412,1963.1,1962.5,0.64691618]
[1771659773303,6.26542203,1963.0,1962.5,0.64691618]
[1771659773506,1.66180412,1963.1,1962.5,0.64691618]
[1771659773700,6.26520019,1963.0,1962.5,0.64691618]
[1771659773902,1.66180412,1963.1,1962.5,0.64691618]
[1771659774100,6.26520022,1963.0,1962.5,0.64691618]
[1771659774304,1.66180412,1963.1,1962.5,0.64691618]
[1771659774503,6.26501401,1963.0,1962.5,0.64691618]
[1771659774698,1.66180412,1963.1,1962.5,0.64691618]
[1771659774901,6.26501537,1963.0,1962.5,0.64691618]
[1771659775109,1.66180412,1963.1,1962.5,0.64691618]
[1771659775310,6.26500506,1963.0,1962.5,0.64691618]
[1771659775509,1.66180412,1963.1,1962.5,0.64691618]
[1771659775710,6.26487216,1963.0,1962.5,0.64691618]
[1771659775911,1.66180412,1963.1,1962.5,0.64691618]
[1771659776211,6.26487216,1963.0,1962.5,0.64691618]
[1771659776407,1.66180412,1963.1,1962.5,0.64691618]
[1771659776609,6.26479956,1963.0,1962.5,0.64691618]
[1771659776808,1.66180412,1963.1,1962.5,0.64691618]
[1771659777107,6.26479956,1963.0,1962.5,0.64691618]
[1771659777308,1.66180412,1963.1,1962.5,0.64691618]
[1771659777509,6.26476562,1963.0,1962.5,0.64691618]
[1771659777809,1.66180412,1963.1,1962.5,0.64691618]
[1771659778109,6.26476562,1963.0,1962.5,0.64691618]
[1771659778402,1.66180412,1963.1,1962.5,0.64691618]
[1771659778607,6.26477055,1963.0,1962.5,0.64691618]
[1771659778809,1.66180412,1963.1,1962.5,0.64691618]
[1771659779107,6.26477055,1963.0,1962.5,0.64691618]
[1771659779408,1.66180412,1963.1,1962.5,0.64691618]
[1771659779610,6.2648136,1963.0,1962.5,0.64691618]
[1771659779804,1.66180412,1963.1,1962.5,0.64691618]
[1771659780005,6.2648136,1963.0,1962.5,0.64691618]
[1771659780201,1.66180412,1963.1,1962.5,0.64691618]
[1771659780412,6.26490789,1963.0,1962.5,0.64691618]
[1771659780612,1.66180412,1963.1,1962.5,0.64691618]
[1771659780906,1.66180412,1962.9,1962.3,0.64373679]
[1771659782008,1.66180412,1962.9,1962.3,0.64753713]
[1771659782412,1.66180412,1963.1,1962.3,0.64753713]
[1771659782712,6.26344781,1963.0,1962.3,0.64753713]
[1771659782908,6.26344781,1962.9,1962.3,0.64753713]
[1771659783210,1.66180412,1963.1,1962.3,0.64753713]
[1771659783410,1.66180412,1962.8,1962.3,0.00380034]
[1771659783612,1.66180412,1962.8,1962.1,0.631748]
[1771659783809,0.46745282,1962.7,1962.1,0.631748]
[1771659784010,6.26352466,1962.6,1961.9,0.631748]
[1771659784211,1.66180412,1962.8,1961.9,0.631748]
[1771659784412,6.26014951,1962.7,1961.9,0.631748]
[1771659784606,1.66180412,1962.8,1961.9,0.631748]
[1771659784607,0.4672114,1962.6,1961.9,0.63688664]
[1771659784807,1.66180412,1962.8,1961.9,0.63688664]
[1771659785105,6.2601608,1962.7,1961.9,0.63688664]
[1771659785314,1.66180412,1962.8,1961.9,0.63688664]
[1771659785610,6.25730902,1962.7,1961.9,0.63688664]
[1771659785800,1.66180412,1962.8,1961.9,0.63688664]
[1771659786001,6.25731042,1962.7,1961.9,0.63688664]
[1771659786201,0.2548,1962.9,1962.1,0.6249213]
[1771659786407,6.25512864,1962.8,1962.1,0.6249213]
[1771659786611,0.2548,1962.9,1962.1,0.6249213]
[1771659786807,6.25467567,1962.8,1962.1,0.6249213]
[1771659787003,5.9324814,1963.1,1962.3,0.6249213]
[1771659787311,6.25460907,1963.0,1962.3,0.6249213]
[1771659787512,6.25460907,1962.9,1962.3,0.6249213]
[1771659787708,1.66180412,1963.1,1962.3,0.6249213]
[1771659787908,6.25378904,1963.0,1962.3,0.6249213]
[1771659788109,6.19374965,1963.3,1962.5,0.62618421]
[1771659788415,6.25371245,1963.2,1962.5,0.62618421]
[1771659788613,6.25371245,1963.1,1962.5,0.62618421]
[1771659788807,6.25371245,1963.0,1962.5,0.62618421]
[1771659789009,6.19374965,1963.3,1962.5,0.62618421]
[1771659789312,6.2537119,1963.2,1962.5,0.62618421]
[1771659789509,6.2537119,1963.1,1962.5,0.62618421]
[1771659789709,6.2537119,1963.0,1962.5,0.62618421]
[1771659789910,6.19374965,1963.3,1962.5,0.62618421]
[1771659790110,6.25376585,1963.2,1962.5,0.62618421]
[1771659790411,1.66180412,1962.9,1962.1,0.62677641]
[1771659792315,1.66180412,1962.9,1962.2,0.62827737]
[1771659792515,1.66180412,1963.1,1962.2,0.62827737]
[1771659792715,6.25399191,1963.0,1962.4,0.62827737]
[1771659792917,0.46674863,1962.9,1962.4,0.62827737]
[1771659793211,4.27067728,1963.2,1962.4,0.62827737]
[1771659793410,6.25412859,1963.1,1962.4,0.62827737]
[1771659793611,6.25412859,1963.0,1962.4,0.62827737]
[1771659793905,4.27067728,1963.2,1962.4,0.62827737]
[1771659794118,6.25412929,1963.1,1962.4,0.62827737]
[1771659794314,4.27067728,1963.2,1962.4,0.62827737]
[1771659794315,6.25412929,1963.0,1962.4,0.62827737]
[1771659794515,1.66180412,1963.1,1962.2,0.62306503]
[1771659794814,6.25438006,1963.0,1962.2,0.62306503]
[1771659795016,0.46677721,1962.9,1962.2,0.62306503]
[1771659795214,1.66180412,1963.1,1962.2,0.62306503]
[1771659795511,6.25467735,1963.0,1962.2,0.62306503]
[1771659795716,0.46679936,1962.9,1962.2,0.62306503]
[1771659796015,1.66180412,1963.1,1962.2,0.62306503]
[1771659796215,6.25467255,1963.0,1962.3,1.66180412]
[1771659796412,0.46679963,1962.9,1962.4,0.62145607]
[1771659796611,1.66180412,1963.1,1962.4,0.62145607]
[1771659796816,6.25501588,1963.0,1962.4,0.62145607]
[1771659797016,0.46682452,1962.9,1962.4,0.62145607]
[1771659797215,1.66180412,1963.1,1962.4,0.62145607]
[1771659797418,6.25739888,1963.0,1962.4,0.62145607]
[1771659797617,0.46685405,1962.9,1962.4,0.62145607]
[1771659797818,1.66180412,1963.1,1962.4,0.62145607]
[1771659798018,6.25739888,1963.0,1962.4,0.62145607]
[1771659798318,0.46685405,1962.9,1962.1,1.66180412]
[1771659798519,1.66180412,1963.1,1962.2,0.61998449]
[1771659798819,6.257722,1963.0,1962.2,0.61998449]
[1771659799013,6.257722,1962.9,1962.2,0.61998449]
[1771659799213,1.66180412,1963.1,1962.2,0.61998449]
[1771659799415,6.25807621,1963.0,1962.2,0.61998449]
[1771659799617,6.25807621,1962.9,1962.2,0.61998449]
[1771659799819,1.66180412,1963.1,1962.2,0.61998449]
[1771659800119,6.2580896,1963.0,1962.2,0.61998449]
[1771659800314,7.91989372,1962.9,1962.2,0.61998449]
[1771659800621,6.25895013,1962.8,1962.2,0.61998449]
[1771659800819,1.66180412,1962.9,1962.2,0.61998449]
[1771659801019,6.25898905,1962.8,1962.2,0.61998449]
[1771659801220,1.66180412,1962.9,1962.2,0.61998449]
[1771659801520,6.2591708,1962.8,1962.2,0.61998449]
[1771659801818,1.66180412,1962.9,1962.2,0.61998449]
[1771659802017,6.2591708,1962.8,1962.2,0.61998449]
[1771659802219,1.66180412,1962.9,1962.2,0.61998449]
[1771659802412,6.25938658,1962.8,1962.2,0.61998449]
[1771659802618,1.66180412,1962.9,1962.2,0.61998449]
[1771659802816,6.2593859,1962.8,1962.2,0.61998449]
[1771659803012,1.66180412,1962.9,1962.2,0.61998449]
[1771659803220,6.25941216,1962.8,1962.2,0.61998449]
[1771659803418,1.66180412,1962.9,1962.2,0.61998449]
[1771659803619,6.25964546,1962.8,1962.2,0.61998449]
[1771659803916,6.25964546,1962.8,1961.9,1.92186276]
[1771659803917,7.45457931,1962.7,1961.9,0.00513864]
[1771659804120,6.25985783,1962.6,1961.9,0.6242878]
[1771659804319,1.66180412,1962.7,1961.9,0.6242878]
[1771659804519,1.66180412,1962.5,1961.9,0.6242878]
[1771659804713,1.66180412,1962.5,1961.9,0.00513864]
[1771659804918,6.26018568,1962.4,1961.7,0.61914916]
[1771659805119,2.12888645,1962.3,1961.5,0.61914916]